bitfinex/quotes_ETHUSD_20241122
["timestamp","ask_amount","ask_price","bid_price","bid_amount"]
[1732305997432,0.0245819,3277.8,3277.1,0.01]
[1732305998006,0.0245819,3277.8,3277.3,0.01]
[1732305999197,0.0245819,3277.8,3277.5,0.01]
[1732305999537,0.0245819,3277.8,3277.5,1.5778]
[1732305999829,0.0245819,3277.8,3277.7,0.01]
[1732306004501,0.0245819,3277.8,3277.4,0.01]
[1732306004703,0.0245819,3277.8,3277.3,0.01]
[1732306005538,0.0245819,3277.8,3277.7,0.01]
[1732306008852,0.0245819,3277.8,3277.3,0.02]
[1732306009011,0.0245819,3277.8,3277.4,0.01]
[1732306009726,0.0245819,3277.8,3277.2,1.6269]
[1732306009945,0.0245819,3277.8,3277.3,0.02]
[1732306010247,0.0245819,3277.8,3277.3,0.01]
[1732306010640,0.0245819,3277.8,3277.1,1.6398]
[1732306010836,0.0245819,3277.8,3277.3,0.01]
[1732306011037,0.0245819,3277.8,3277.5,0.01]
[1732306011236,0.0245819,3277.8,3277.7,0.01]
[1732306012832,0.0245819,3277.8,3277.2,0.01]
[1732306013028,0.0245819,3277.8,3277.5,0.01]
[1732306013419,0.0245819,3277.8,3277.1,1.6298]
[1732306013420,0.0245819,3277.8,3277.2,0.01]
[1732306013616,0.0245819,3277.8,3277.4,0.01]
[1732306013999,0.0245819,3277.8,3277.3,0.01]
[1732306014157,0.0245819,3277.8,3277.2,0.01]
[1732306015519,0.0245819,3277.8,3277.1,1.6198]
[1732306015721,0.55,3277.6,3276.8,0.01]
[1732306015958,0.55,3277.6,3276.7,1.5175]
[1732306016156,0.55,3277.4,3277.0,0.01]
[1732306016477,0.55,3277.4,3276.8,0.01]
[1732306017021,0.55,3277.4,3277.0,0.01]
[1732306018974,0.55,3277.4,3276.6,0.01]
[1732306019160,0.55,3277.0,3276.6,0.01]
[1732306019364,0.55,3277.0,3276.7,0.01]
[1732306020348,0.55,3277.0,3276.8,0.40682241]
[1732306020572,0.55,3277.0,3276.7,0.01]
[1732306020846,0.6795819,3277.8,3277.1,0.01]
[1732306022048,0.55,3277.7,3277.1,0.01]
[1732306022458,0.0245819,3277.8,3277.5,0.01]
[1732306024186,0.0226722,3277.8,3277.5,0.01]
[1732306027761,0.0226722,3277.8,3277.7,0.01]
[1732306029092,3.756,3277.6,3276.9,0.01]
[1732306029299,0.55,3277.4,3276.7,0.01]
[1732306029498,0.55,3277.4,3276.9,0.01]
[1732306029997,0.55,3277.4,3277.1,0.01]
[1732306030299,0.55,3277.6,3277.1,0.01]
[1732306030803,0.0226722,3277.8,3277.0,1.6386]
[1732306030804,0.0226722,3277.8,3277.5,0.01]
[1732306031393,0.0226722,3277.8,3277.7,0.01]
[1732306032094,0.0226722,3277.8,3277.4,0.01]
[1732306033408,0.0226722,3277.8,3277.5,0.01]
[1732306033878,0.0226722,3277.8,3277.4,0.01]
[1732306034914,0.55,3277.6,3276.9,0.01]
[1732306035206,0.0226722,3277.8,3276.3,1.6765]
[1732306035207,0.55,3277.2,3276.3,1.6765]
[1732306035409,0.655,3277.1,3276.2,0.01]
[1732306035579,0.55,3277.0,3276.1,0.01]
[1732306035779,0.55,3276.8,3276.1,0.01]
[1732306035967,0.55,3276.8,3276.3,0.01]
[1732306036401,6.68877277,3276.7,3275.8,0.01]
[1732306036610,4.47987728,3276.6,3275.8,0.01]
[1732306036789,1.27387728,3276.6,3275.8,0.01]
[1732306037111,1.27387728,3276.6,3276.0,0.01]
[1732306037809,0.55,3276.6,3276.0,0.01]
[1732306038007,0.55,3276.6,3275.8,0.01]
[1732306038185,0.55,3276.6,3275.4,0.02]
[1732306038387,0.655,3276.5,3275.4,0.02]
[1732306038576,0.55,3276.3,3275.4,0.01]
[1732306038909,0.55,3276.1,3275.4,0.01]
[1732306039278,0.55,3276.1,3275.7,0.01]
[1732306039605,0.55,3276.1,3275.4,0.01]
[1732306040307,0.55,3276.1,3275.2,0.01]
[1732306040513,0.55,3275.9,3275.1,0.01]
[1732306041104,0.55,3275.9,3274.9,0.01]
[1732306041312,0.55,3275.8,3274.9,0.01]
[1732306041819,0.55,3275.8,3274.7,1.5559]
[1732306041820,0.655,3275.9,3275.4,0.01]
[1732306042667,0.655,3276.3,3275.4,0.01]
[1732306043107,0.55,3276.2,3275.3,0.01]
[1732306043473,1.205,3276.0,3275.1,0.01]
[1732306043698,1.205,3276.0,3275.2,0.01]
[1732306044772,1.205,3276.0,3274.7,1.5153]
[1732306044975,0.55,3275.8,3275.0,0.01]
[1732306045170,0.55,3275.8,3275.2,0.01]
[1732306045710,0.55,3275.9,3275.2,0.01]
[1732306046214,0.55,3275.9,3275.0,0.02]
[1732306046577,0.55,3275.9,3274.8,0.01]
[1732306046780,0.55,3275.5,3274.5,0.01]
[1732306047004,3.37777277,3275.5,3274.6,0.01]
[1732306047199,0.55,3275.3,3274.6,0.01]
[1732306048994,3.37777277,3275.5,3274.6,0.01]
[1732306049201,3.37777277,3275.5,3274.5,0.01]
[1732306049393,2.82777277,3275.2,3274.5,0.01]
[1732306049595,0.55,3275.0,3274.5,0.01]
[1732306050598,0.55,3275.3,3274.5,0.01]
[1732306051705,0.55,3275.3,3274.7,0.01]
[1732306052916,0.655,3275.8,3275.1,0.01]
[1732306053283,0.655,3275.8,3275.0,0.01]
[1732306053284,3.48277277,3275.8,3275.0,0.01]
[1732306054177,0.55,3275.7,3275.0,0.01]
[1732306055309,0.55,3275.7,3275.1,1.5727]
[1732306055510,2.82777277,3276.1,3275.1,1.5727]
[1732306055511,3.48277277,3276.1,3275.1,1.5727]
[1732306055721,3.48277277,3276.1,3275.0,0.01]
[1732306055722,2.82777277,3275.8,3275.0,0.01]
[1732306056015,0.655,3275.4,3274.6,0.01]
[1732306056214,0.34827728,3275.3,3274.6,0.01]
[1732306056729,0.55,3275.1,3274.6,0.01]
[1732306057031,0.34827728,3275.3,3274.6,0.01]
[1732306057032,0.55,3275.2,3274.6,0.01]
[1732306057530,0.55,3275.2,3274.5,0.01]
[1732306057726,0.55,3275.2,3274.4,1.5727]
[1732306057930,0.55,3275.2,3274.5,0.01]
[1732306058109,0.34827728,3275.3,3274.9,0.01]
[1732306058299,0.655,3275.8,3274.9,0.01]
[1732306058499,0.655,3275.8,3275.0,1.95368907]
[1732306058840,0.655,3276.2,3275.0,1.5727]
[1732306059070,0.655,3276.2,3275.2,0.01]
[1732306059397,0.55,3276.1,3275.2,0.01]
[1732306059611,0.655,3276.2,3275.3,0.01]
[1732306060141,0.655,3276.2,3275.2,0.01]
[1732306060445,2.82777277,3276.0,3275.3,0.01]
[1732306060626,0.28277728,3275.9,3275.3,0.01]
[1732306061131,0.55,3275.8,3275.2,0.01]
[1732306061291,1.768375,3275.8,3275.2,0.01]
[1732306061499,1.768375,3275.8,3275.3,0.01]
[1732306061838,0.20511523,3275.8,3275.6,1.5675]
[1732306062008,2.82777277,3276.0,3275.4,0.01]
[1732306062527,2.82777277,3276.0,3275.3,1.5775]
[1732306062731,0.28277728,3275.9,3275.4,0.01]
[1732306062934,0.28277728,3275.9,3275.3,1.5675]
[1732306063111,0.55,3275.8,3275.4,0.01]
[1732306064503,0.55,3275.9,3275.4,0.01]
[1732306065134,0.55,3275.9,3275.3,1.5675]
[1732306065338,2.82777277,3275.4,3274.7,1.6066]
[1732306065534,2.82777277,3275.4,3274.7,1.5966]
[1732306065535,0.55,3275.3,3274.7,1.5966]
[1732306065733,0.89827728,3275.3,3274.7,1.5866]
[1732306067649,2.82777277,3275.1,3274.4,0.01]
[1732306067967,0.55,3275.0,3274.4,0.01]
[1732306068473,0.55,3275.3,3274.4,0.01]
[1732306068681,0.55,3275.1,3274.7,0.01]
[1732306069884,3.37777277,3275.4,3274.7,0.01]
[1732306070049,0.40327728,3275.3,3274.7,0.01]
[1732306070407,0.55,3275.2,3274.7,0.01]
[1732306070876,0.55,3275.4,3274.7,0.01]
[1732306071643,0.55,3275.2,3274.8,1.6508]
[1732306071849,0.55,3275.4,3274.8,1.6508]
[1732306072351,0.55,3275.6,3274.8,1.6508]
[1732306072551,0.55,3275.4,3274.9,0.01]
[1732306072781,0.55,3275.4,3274.8,1.6508]
[1732306073240,0.55,3275.4,3274.9,0.01]
[1732306073792,0.55,3275.4,3274.8,1.6508]
[1732306073793,0.655,3275.3,3274.5,0.01]
[1732306074085,0.55,3275.2,3274.5,0.01]
[1732306074298,0.40327728,3275.5,3275.2,0.01]
[1732306074471,2.82777277,3276.0,3274.9,0.02]
[1732306075300,2.82777277,3276.0,3275.1,0.01]
[1732306075472,0.34827728,3275.9,3275.1,0.01]
[1732306075809,0.55,3275.8,3275.1,0.01]
[1732306076108,0.55,3275.6,3274.9,0.02]
[1732306076304,0.55,3275.4,3274.9,0.01]
[1732306076476,0.55,3275.2,3274.9,0.01]
[1732306076659,0.28364618,3275.1,3274.9,0.01]
[1732306076865,0.28364618,3275.0,3274.9,0.01]
[1732306077366,0.83364618,3275.0,3274.9,0.01]
[1732306078411,0.83364618,3275.0,3274.8,1.5843]
[1732306078569,0.83364618,3274.9,3274.8,1.5843]
[1732306078901,2.05222718,3274.9,3274.8,1.5843]
[1732306079064,2.05222965,3274.9,3274.8,1.5843]
[1732306079605,2.05222965,3274.9,3274.6,0.01]
[1732306079791,0.55,3274.7,3274.6,0.01]
[1732306079966,0.28364865,3274.7,3274.6,0.01]
[1732306080296,0.83364865,3274.7,3274.6,0.01]
[1732306081695,0.83364865,3274.7,3274.5,1.5943]
[1732306081885,0.83364865,3274.6,3274.5,1.5943]
[1732306082390,0.28364865,3274.6,3274.5,1.5943]
[1732306082591,0.28364865,3274.6,3274.5,2.17381798]
[1732306082821,0.28364865,3274.6,3274.5,1.5943]
[1732306083020,0.28364865,3274.6,3274.5,1.5843]
[1732306083812,0.83364865,3274.6,3274.5,1.5843]
[1732306084526,0.55,3274.5,3274.1,1.5368]
[1732306084725,0.28364865,3274.4,3274.0,0.01]
[1732306084880,0.83364865,3274.3,3273.8,1.5468]
[1732306085081,0.83364865,3274.3,3273.8,1.5368]
[1732306085082,0.28364865,3274.2,3273.8,1.5368]
[1732306085306,0.655,3274.6,3273.7,0.01]
[1732306085307,0.83364865,3274.1,3273.7,0.01]
[1732306085518,0.55,3273.9,3273.7,0.01]
[1732306085689,0.8330833,3273.8,3273.7,0.01]
[1732306086489,0.8330833,3273.8,3273.7,0.02]
[1732306086719,0.8330833,3273.8,3273.7,1.95458907]
[1732306086720,0.2830833,3273.8,3273.7,1.95458907]
[1732306086932,0.2830833,3273.8,3273.7,1.5736]
[1732306088097,0.8330833,3273.8,3273.7,1.5736]
[1732306088294,0.8330833,3273.8,3273.7,0.01]
[1732306088687,0.8330833,3273.8,3273.7,0.02]
[1732306091429,0.8330833,3273.8,3273.7,1.5463]
[1732306093353,0.8330833,3273.8,3272.3,0.02]
[1732306093354,0.55,3273.7,3273.5,0.01]
[1732306093628,0.55,3273.7,3273.3,1.6677]
[1732306093629,0.55,3273.5,3273.3,0.01]
[1732306093926,0.55,3273.5,3272.9,0.01]
[1732306093927,0.55,3273.3,3272.9,0.01]
[1732306094091,0.55,3273.1,3272.6,0.01]
[1732306094290,0.55,3272.9,3272.4,0.02]
[1732306094612,0.55,3272.7,3272.6,0.01]
[1732306094813,0.83253874,3272.7,3272.6,0.01]
[1732306095334,0.83253874,3272.7,3272.4,0.02]
[1732306095486,0.28253874,3272.6,3272.5,0.01]
[1732306095687,0.28253874,3272.6,3272.5,1.5859]
[1732306095931,0.28253874,3272.6,3272.5,1.98980472]
[1732306096133,0.655,3273.8,3273.1,0.01]
[1732306096305,0.63047407,3273.7,3273.1,0.01]
[1732306096505,0.28219679,3273.6,3273.2,1.507]
[1732306096704,0.28219679,3273.5,3273.1,0.01]
[1732306096908,0.28219679,3273.4,3273.1,0.01]
[1732306097111,0.28219679,3273.3,3273.1,0.01]
[1732306097439,0.83219679,3273.2,3273.1,0.01]
[1732306098637,0.83219679,3273.2,3273.0,0.01]
[1732306098944,0.28219679,3273.1,3273.0,0.01]
[1732306099102,0.83219679,3273.1,3273.0,0.01]
[1732306099729,0.83219679,3273.1,3271.9,0.40390472]
[1732306099730,0.55,3273.0,3272.5,0.01]
[1732306099943,0.55,3273.0,3272.4,1.517]
[1732306099944,0.55,3272.8,3272.4,0.01]
[1732306100098,0.83219679,3272.7,3272.4,0.01]
[1732306100298,0.655,3273.2,3272.2,0.02]
[1732306100299,0.83219679,3272.6,3272.2,0.02]
[1732306100635,5.37,3274.5,3272.0,0.02]
[1732306100636,0.55,3272.4,3272.0,0.02]
[1732306100842,0.55,3272.2,3271.8,0.01]
[1732306101142,0.55,3272.2,3271.5,0.01]
[1732306101336,0.55,3272.0,3271.8,0.01]
[1732306101564,0.55,3271.8,3271.5,0.01]
[1732306101741,0.55,3271.8,3271.7,0.01]
[1732306101926,0.83161432,3271.8,3271.7,0.01]
[1732306103537,0.28161432,3271.8,3271.7,0.42390472]
[1732306103851,2.82777277,3272.7,3272.1,0.02]
[1732306104016,0.56415143,3272.6,3272.1,0.02]
[1732306104233,0.28137415,3272.5,3271.5,0.01]
[1732306104433,0.655,3272.3,3271.5,0.01]
[1732306104654,0.62965143,3272.2,3272.0,0.01]
[1732306104965,0.28137415,3272.1,3271.7,0.01]
[1732306105372,0.55,3272.0,3271.7,0.01]
[1732306105746,0.55,3271.8,3271.7,0.01]
[1732306105949,0.83109634,3271.8,3271.7,0.01]
[1732306106146,0.83109634,3271.8,3271.7,0.02]
[1732306106547,0.83109634,3271.8,3271.7,0.01]
[1732306106777,0.83109634,3271.8,3271.7,0.02]
[1732306107330,0.83099034,3271.8,3271.7,0.02]
[1732306109078,0.8308847,3271.8,3271.7,0.01]
[1732306109263,0.8308847,3271.8,3271.7,0.02]
[1732306112178,0.655,3273.0,3272.4,0.01]
[1732306112381,0.28095755,3272.9,3272.4,0.01]
[1732306112616,0.28095755,3272.9,3272.5,0.01]
[1732306112831,0.28095755,3272.9,3272.8,0.01]
[1732306113120,0.655,3273.4,3272.3,0.01]
[1732306113121,3.10873032,3273.3,3272.3,0.01]
[1732306113327,0.65733058,3273.2,3272.6,0.01]
[1732306113617,0.28095755,3273.1,3272.6,0.01]
[1732306113820,0.28095755,3273.1,3272.8,0.01]
[1732306114024,0.655,3273.4,3272.8,0.01]
[1732306114025,0.28095755,3273.3,3272.8,0.01]
[1732306114324,2.82777277,3274.0,3273.0,0.01]
[1732306114325,0.28095755,3273.2,3273.0,0.01]
[1732306114483,0.28095755,3273.1,3273.0,0.01]
[1732306114822,0.28095755,3273.6,3273.0,0.01]
[1732306115122,0.28095755,3273.5,3273.0,0.01]
[1732306115423,0.28095755,3273.4,3273.0,0.01]
[1732306115619,0.83095755,3273.3,3272.8,0.01]
[1732306115784,0.55,3273.1,3272.8,0.01]
[1732306115979,0.28095755,3273.0,3272.8,0.01]
[1732306116190,0.28095755,3272.9,3272.8,0.01]
[1732306116392,0.83095755,3272.9,3272.8,0.01]
[1732306116740,0.83141215,3272.9,3272.8,0.01]
[1732306117029,0.55,3272.8,3272.4,1.5887]
[1732306117206,0.28141215,3272.7,3272.4,1.5887]
[1732306117514,0.83141215,3272.6,3272.4,1.5887]
[1732306117717,0.83141215,3272.5,3272.4,1.5887]
[1732306118021,0.83141215,3272.5,3272.4,0.01]
[1732306118183,0.83141215,3272.5,3272.3,0.01]
[1732306118184,0.55,3272.4,3272.3,0.01]
[1732306118384,0.83141215,3272.4,3272.3,0.01]
[1732306118784,0.83141215,3272.4,3272.3,0.41390472]
[1732306119176,0.83141215,3272.4,3272.3,0.01]
[1732306119406,0.28141215,3272.4,3272.3,1.78047]
[1732306119609,0.655,3274.0,3273.8,0.01]
[1732306119844,0.655,3274.0,3273.9,0.01]
[1732306120041,1.218532,3274.9,3273.9,0.01]
[1732306120254,1.873532,3274.9,3273.9,0.01]
[1732306120418,0.1873532,3274.8,3274.7,0.01]
[1732306121126,0.1873532,3274.8,3274.5,0.02]
[1732306121529,0.1873532,3274.8,3274.7,0.01]
[1732306122335,0.1873532,3274.8,3274.2,0.01]
[1732306122534,0.1873532,3274.8,3274.3,0.01]
[1732306123446,0.55,3274.7,3274.4,0.01]
[1732306125213,0.55,3274.7,3274.3,0.01]
[1732306125523,0.55,3274.7,3274.4,0.01]
[1732306126606,0.19558852,3274.7,3274.6,0.01]
[1732306126853,1.218532,3274.9,3274.8,0.02]
[1732306127052,1.218532,3274.9,3274.8,0.42390472]
[1732306128199,0.655,3276.1,3274.8,0.42390472]
[1732306128370,0.655,3276.1,3274.5,1.5531]
[1732306128371,0.655,3276.1,3275.2,0.01]
[1732306128776,1.873404,3276.1,3275.4,0.01]
[1732306128958,0.1873404,3276.0,3275.4,0.01]
[1732306130191,0.55,3275.9,3275.4,0.01]
[1732306131572,0.55,3275.7,3275.4,0.01]
[1732306131811,0.55,3275.5,3275.4,0.41390472]
[1732306132101,0.55,3275.5,3275.4,0.01]
[1732306132305,0.55,3275.8,3275.7,0.01]
[1732306132488,0.83016913,3275.8,3275.7,0.01]
[1732306132803,0.83016913,3275.8,3275.6,0.01]
[1732306132978,0.83016913,3275.7,3275.6,0.01]
[1732306133183,0.70862436,3275.7,3275.6,0.01]
[1732306133374,0.55,3275.7,3275.6,0.01]
[1732306133570,0.83005142,3275.7,3275.6,0.01]
[1732306134210,0.55,3275.7,3275.6,0.01]
[1732306134710,0.55,3275.8,3275.6,0.02]
[1732306140832,1.218404,3276.1,3276.0,0.02]
[1732306141123,6.6317141,3277.9,3276.0,0.02]
[1732306141425,0.1218,3277.2,3276.0,0.02]
[1732306141594,0.28052485,3277.1,3276.0,0.02]
[1732306142282,0.55,3277.0,3276.0,0.02]
[1732306142617,0.55,3276.8,3276.0,0.02]
[1732306142831,0.55,3276.6,3276.0,0.02]
[1732306142982,0.28052485,3276.5,3276.0,0.02]
[1732306143331,0.55,3276.5,3276.4,0.01]
[1732306143482,0.83060927,3276.5,3276.4,0.01]
[1732306143682,0.28060927,3276.5,3276.4,0.01]
[1732306143916,0.28060927,3276.5,3276.4,0.02]
[1732306144220,0.1218,3277.2,3276.7,0.01]
[1732306144395,0.28059616,3277.1,3276.7,0.01]
[1732306145394,0.55,3277.0,3276.7,0.01]
[1732306145603,0.55,3276.8,3276.7,0.01]
[1732306145807,0.83059616,3276.8,3276.7,0.01]
[1732306146293,0.83059616,3276.8,3276.7,0.02]
[1732306147010,0.28059616,3276.8,3276.7,0.02]
[1732306147212,0.28059616,3276.8,3276.0,0.01]
[1732306147213,0.1218,3277.2,3277.0,0.02]
[1732306147411,0.0226722,3277.8,3272.8,1.26634963]
[1732306147412,0.0226722,3277.8,3277.6,0.01]
[1732306147693,1.49850394,3277.7,3277.6,0.01]
[1732306148137,1.21753,3277.7,3277.6,0.01]
[1732306149005,0.0226722,3277.8,3277.6,0.02]
[1732306149396,0.1444142,3277.8,3277.6,0.01]
[1732306149637,0.1444142,3277.8,3277.3,0.02]
[1732306149638,0.55,3277.7,3277.3,0.02]
[1732306149794,0.55,3277.7,3277.6,0.01]
[1732306149995,0.28130594,3277.7,3277.6,0.02]
[1732306150226,0.1444142,3277.8,3277.6,0.02]
[1732306150227,0.0226722,3277.8,3277.6,0.02]
[1732306150646,0.0226722,3277.8,3277.7,1.6502]
[1732306151102,0.0226722,3277.8,3277.7,1.81622]
[1732306151605,0.0226722,3277.8,3277.7,1.6502]
[1732306151805,0.0226722,3277.8,3277.7,1.6402]
[1732306153205,0.0226722,3277.8,3277.7,1.6502]
[1732306158767,0.0226722,3277.8,3277.7,1.6192]
[1732306162671,0.0226722,3277.8,3277.7,1.64970089]
[1732306162831,0.0226722,3277.8,3277.7,1.81667098]
[1732306164475,0.00194848,3278.0,3277.9,0.02]
[1732306164781,0.875,3279.7,3279.6,0.01]
[1732306164782,1.53,3279.7,3279.6,0.01]
[1732306164941,1.15612347,3279.7,3279.6,0.01]
[1732306165131,0.875,3279.7,3279.6,0.02]
[1732306167076,1.425,3279.7,3279.6,0.02]
[1732306167277,0.875,3279.7,3279.6,1.6627]
[1732306167441,0.875,3279.7,3279.6,1.82897]
[1732306168266,0.1485331,3281.1,3281.0,0.02]
[1732306169204,1.5317,3281.0,3280.8,0.01]
[1732306169409,1.5317,3281.0,3280.8,0.02]
[1732306169410,0.16802331,3280.9,3280.8,0.02]
[1732306169878,0.1485331,3281.1,3281.0,0.02]
[1732306170255,0.1485331,3281.1,3281.0,3.43589229]
[1732306171559,0.1485331,3281.1,3281.0,0.02]
[1732306171754,0.1485331,3281.1,3280.6,3.41589229]
[1732306171755,1.5317,3281.0,3280.7,0.01]
[1732306171963,0.55,3280.8,3280.7,0.01]
[1732306172665,0.55,3280.8,3280.6,3.42589229]
[1732306172969,0.55,3280.8,3280.6,3.41589229]
[1732306173171,0.55,3280.8,3280.5,0.01]
[1732306173377,0.55,3280.8,3280.7,0.01]
[1732306173562,0.77497233,3280.8,3280.2,3.42589229]
[1732306173771,0.77497233,3280.8,3280.0,0.01]
[1732306173964,1.5317,3280.5,3279.8,3.42589229]
[1732306174163,0.55,3280.4,3279.8,3.41589229]
[1732306174490,0.55,3280.4,3279.7,0.01]
[1732306174693,0.55,3280.2,3279.7,0.01]
[1732306174908,0.55,3280.0,3279.5,0.01]
[1732306175058,0.55,3279.8,3279.6,0.01]
[1732306175383,0.55,3279.8,3279.2,0.02]
[1732306176161,0.55,3279.8,3279.6,0.01]
[1732306176395,0.55,3279.8,3279.6,0.02]
[1732306177765,0.55,3279.8,3279.6,0.01]
[1732306178166,0.83158148,3279.7,3279.6,0.01]
[1732306178400,0.99055663,3279.7,3279.6,0.01]
[1732306179213,0.70897515,3279.7,3279.6,0.01]
[1732306179506,0.83162816,3279.7,3279.6,0.01]
[1732306179801,0.55,3279.8,3279.7,0.01]
[1732306179963,0.83163418,3279.8,3279.7,0.01]
[1732306181107,0.83168218,3279.8,3279.7,0.01]
[1732306181792,0.20817,3279.9,3279.7,0.01]
[1732306182007,1.5317,3280.4,3280.2,0.01]
[1732306182210,0.28174415,3280.3,3280.1,0.01]
[1732306182398,0.43491415,3280.3,3280.0,0.01]
[1732306182585,0.28174415,3280.2,3280.0,0.01]
[1732306182775,0.28174415,3280.2,3280.0,0.02]
[1732306182974,0.28174415,3280.2,3280.1,2.81855102]
[1732306183284,1.6802331,3281.1,3280.6,0.01]
[1732306183484,0.44990999,3281.0,3280.6,2.82855102]
[1732306183716,0.28188668,3280.9,3280.6,2.82855102]
[1732306184708,0.28182838,3280.8,3280.6,2.82855102]
[1732306184914,0.28182838,3280.9,3280.6,2.82855102]
[1732306185120,0.55,3280.7,3280.6,2.82855102]
[1732306185278,0.83182838,3280.7,3280.6,2.82855102]
[1732306186075,0.83182838,3280.7,3280.6,2.81855102]
[1732306186275,0.83182838,3280.7,3280.5,0.01]
[1732306186276,0.55,3280.6,3280.5,0.02]
[1732306186484,0.83182838,3280.6,3280.5,2.83855102]
[1732306186789,0.83182838,3280.6,3280.5,0.02]
[1732306188157,0.28182838,3280.6,3280.5,1.5744]
[1732306188419,0.1485331,3281.1,3281.0,0.02]
[1732306189136,0.43038942,3281.1,3281.0,0.02]
[1732306189331,0.43038942,3281.1,3281.0,1.5887]
[1732306189561,0.1485331,3281.1,3281.0,1.5887]
[1732306190065,0.6985331,3281.1,3281.0,1.5887]
[1732306190791,0.6985331,3281.1,3281.0,0.02]
[1732306191142,0.55,3281.0,3280.8,0.01]
[1732306191346,0.55,3281.0,3280.9,0.01]
[1732306191548,0.8319202,3281.0,3280.9,0.01]
[1732306193088,0.83211219,3281.0,3280.9,0.01]
[1732306193587,0.83211219,3281.0,3280.8,3.4242265]
[1732306193745,0.83211219,3280.9,3280.8,3.4242265]
[1732306194081,0.98517672,3280.9,3280.8,3.4242265]
[1732306197379,0.83211219,3280.9,3280.8,3.4242265]
[1732306200085,0.28211219,3280.9,3280.8,5.0538265]
[1732306200285,0.28211219,3280.9,3280.8,6.60408103]
[1732306200490,0.1485331,3281.1,3281.0,0.01]
[1732306200787,0.1485331,3281.1,3281.0,1.61203019]
[1732306200788,0.43090267,3281.1,3281.0,1.61203019]
[1732306200987,0.1485331,3281.1,3281.0,0.0504751]
[1732306201169,0.1485331,3281.1,3281.0,0.02]
[1732306201374,0.43086111,3281.1,3281.0,0.02]
[1732306201954,0.6985331,3281.1,3281.0,0.02]
[1732306202158,0.6985331,3281.1,3281.0,1.58155509]
[1732306202358,0.6985331,3281.1,3281.0,0.02]
[1732306203389,0.9806166,3281.1,3281.0,0.02]
[1732306204002,0.9805485,3281.1,3281.0,0.02]
[1732306204394,0.4305485,3281.1,3281.0,0.02]
[1732306204608,0.4305485,3281.1,3281.0,2.05848265]
[1732306204898,0.1485331,3281.1,3281.0,3.63003774]
[1732306205465,0.4512081,3282.8,3282.7,0.01]
[1732306205805,0.28203283,3282.8,3282.7,0.01]
[1732306206299,1.80273283,3282.8,3281.9,0.02]
[1732306206506,0.46230611,3282.7,3282.1,0.01]
[1732306206674,1.80273283,3282.6,3281.9,0.01]
[1732306207017,0.28203283,3282.5,3281.9,0.02]
[1732306207171,1.5207,3282.6,3282.1,0.01]
[1732306207172,0.28203283,3282.4,3282.1,0.01]
[1732306207373,0.28203283,3282.4,3282.3,0.01]
[1732306207599,0.28203283,3282.5,3282.3,0.01]
[1732306207805,0.28203283,3282.4,3282.3,0.01]
[1732306208503,1.5207,3282.9,3282.2,3.4242265]
[1732306208504,0.28200105,3282.8,3282.7,0.01]
[1732306208709,0.28200105,3282.8,3282.6,3.4142265]
[1732306208710,0.46230073,3282.8,3282.6,3.4142265]
[1732306208913,0.28203062,3282.7,3282.6,3.4142265]
[1732306209071,0.28203062,3283.3,3282.6,3.4142265]
[1732306209277,0.46230368,3283.2,3283.0,3.4142265]
[1732306209478,0.28203062,3283.1,3283.0,3.4142265]
[1732306209677,0.28203062,3283.1,3282.6,4.9463265]
[1732306210415,0.28203062,3283.1,3283.0,3.4142265]
[1732306210913,1.5207,3283.8,3283.0,3.4142265]
[1732306210914,0.28203062,3283.7,3283.0,3.4142265]
[1732306211076,0.46230368,3283.6,3282.7,1.50114619]
[1732306211279,0.4512081,3284.2,3283.5,4.9463265]
[1732306211507,0.28196379,3284.3,3283.5,1.5321]
[1732306211810,0.28196379,3284.2,3283.5,1.5321]
[1732306212035,1.49724579,3284.2,3282.6,3.05962023]
[1732306212171,0.4483807,3284.1,3283.8,3.4142265]
[1732306212378,0.28196379,3284.0,3283.8,3.4142265]
[1732306212875,0.16692331,3284.3,3283.8,3.4142265]
[1732306212876,0.28196379,3283.9,3283.8,3.4142265]
[1732306213317,0.28196379,3284.0,3283.8,3.4142265]
[1732306213487,1.01223017,3283.9,3283.8,3.4142265]
[1732306214488,0.55,3283.8,3283.4,3.4142265]
[1732306214697,0.55,3283.6,3283.4,3.4142265]
[1732306214993,0.83196379,3283.5,3283.4,3.4142265]
[1732306216719,0.55,3283.4,3281.9,1.5978]
[1732306216890,1.5425,3283.1,3282.6,3.4142265]
[1732306217112,0.83196379,3283.0,3281.9,1.5978]
[1732306217299,0.55,3282.8,3282.2,0.29299316]
[1732306217499,0.55,3282.6,3281.9,1.5978]
[1732306217738,0.55,3282.4,3281.9,1.5978]
[1732306217910,0.55,3282.2,3281.9,1.5978]
[1732306219252,0.55,3282.0,3281.5,0.03046536]
[1732306219448,0.55,3282.0,3281.9,0.29299316]
[1732306219603,0.55,3282.0,3281.5,1.56649347]
[1732306219938,0.55,3282.0,3281.3,1.6588]
[1732306220437,0.55,3282.0,3281.9,3.4142265]